bitfinex-derivatives/quotes_ETHF0:USTF0_20241007
["timestamp","ask_amount","ask_price","bid_price","bid_amount"]
[1728326898821,3.2078,2434.7,2433.6,44.0078]
[1728326898822,3.2078,2435.1,2434.7,0.41078]
[1728326899024,3.2078,2435.1,2434.0,1.02726]
[1728326899025,3.2078,2435.1,2434.8,0.41076]
[1728326899229,3.2078,2435.1,2434.2,3.2078]
[1728326899230,3.2078,2435.1,2434.7,0.41077]
[1728326899524,3.2078,2435.1,2434.8,0.41077]
[1728326899727,3.2078,2435.1,2434.2,3.2078]
[1728326900222,3.47761,2435.6,2433.9,0.41092]
[1728326900223,0.41086,2434.3,2433.9,0.41092]
[1728326900428,3.2078,2434.4,2433.7,0.7281]
[1728326900626,4.83086,2434.3,2433.9,0.41091]
[1728326900824,4.83086,2434.3,2433.8,0.41093]
[1728326900825,0.41088,2434.2,2433.8,0.41093]
[1728326901029,4.42,2434.3,2433.7,0.7281]
[1728326901423,4.42,2434.3,2434.1,0.41089]
[1728326901623,4.42,2434.3,2433.7,0.7281]
[1728326901826,3.2078,2434.4,2433.7,4.8369]
[1728326902126,4.42,2434.7,2433.8,3.2078]
[1728326902318,4.42,2434.7,2434.5,0.41081]
[1728326902524,3.2078,2434.8,2433.9,1.02731]
[1728326902525,3.2078,2434.8,2434.7,0.41078]
[1728326902921,7.6278,2435.1,2434.7,4.1072]
[1728326903130,3.2078,2435.1,2435.0,0.41073]
[1728326903519,3.2078,2435.1,2435.0,4.51713]
[1728326903725,0.41069,2435.3,2434.4,4.23489]
[1728326904225,0.41069,2435.3,2434.5,40.8]
[1728326904422,4.42,2435.4,2435.0,0.41073]
[1728326904621,4.83068,2435.4,2435.0,0.41073]
[1728326904923,4.42,2435.4,2434.5,40.8]
[1728326905431,4.42,2435.4,2434.8,0.41077]
[1728326905623,4.83067,2435.4,2435.1,0.41071]
[1728326905823,0.41067,2435.4,2435.1,0.41071]
[1728326906031,3.2078,2435.5,2434.7,3.2078]
[1728326906225,0.41067,2435.4,2435.1,0.41071]
[1728326906534,0.41069,2435.3,2435.0,0.41073]
[1728326906928,3.2078,2435.5,2434.7,3.2078]
[1728326907128,0.41067,2435.4,2434.7,3.2078]
[1728326907433,3.2078,2435.5,2434.7,3.2078]
[1728326907434,4.42,2435.1,2434.7,3.2078]
[1728326907729,3.2078,2435.2,2435.0,0.41072]
[1728326907939,3.2078,2435.2,2434.5,1.02705]
[1728326908149,3.61851,2435.2,2435.0,0.41073]
[1728326908431,3.61851,2435.2,2434.4,3.2078]
[1728326908432,3.2078,2435.2,2434.4,3.2078]
[1728326908631,4.83073,2435.1,2434.8,0.41076]
[1728326908835,4.83073,2435.1,2434.4,3.2078]
[1728326908836,4.42,2435.1,2434.4,3.2078]
[1728326909024,3.2078,2435.2,2434.5,1.02705]
[1728326909228,3.2078,2435.2,2434.9,0.41075]
[1728326909229,3.61851,2435.2,2434.9,0.41075]
[1728326909435,0.41072,2435.1,2434.4,3.2078]
[1728326909626,3.2078,2435.2,2435.0,0.41072]
[1728326909832,3.2078,2435.2,2435.1,0.41072]
[1728326910035,3.2078,2435.2,2434.5,3.2078]
[1728326910330,3.2078,2434.9,2434.0,3.2078]
[1728326910532,4.42,2434.8,2433.9,1.02727]
[1728326910740,3.2078,2434.5,2433.7,0.7281]
[1728326910931,0.41088,2434.2,2434.0,0.4109]
[1728326911126,3.2078,2434.5,2434.4,0.41084]
[1728326912138,3.2078,2434.5,2433.9,1.02728]
[1728326912139,3.2078,2434.5,2434.3,0.41084]
[1728326912336,0.41084,2434.4,2434.2,0.41087]
[1728326912526,3.2078,2434.5,2433.7,3.9359]
[1728326912838,3.61863,2434.5,2434.2,0.41086]
[1728326913031,3.61863,2434.5,2434.3,0.41085]
[1728326913238,4.42,2434.4,2433.7,0.7281]
[1728326913426,3.2078,2434.1,2433.7,0.7281]
[1728326913625,3.2078,2434.1,2433.4,3.2078]
[1728326913938,0.41109,2432.9,2432.7,0.41112]
[1728326914137,3.2078,2432.9,2432.5,0.41115]
[1728326914437,3.2078,2432.9,2432.8,0.41111]
[1728326914637,3.2078,2432.9,2432.5,1.0279]
[1728326914836,3.61884,2433.2,2433.0,0.41107]
[1728326915036,3.2078,2433.2,2433.1,0.41105]
[1728326915533,3.61884,2433.2,2433.0,0.41106]
[1728326915734,3.2078,2433.2,2432.6,1.02786]
[1728326915941,3.2078,2433.2,2433.1,0.41105]
[1728326916144,3.2078,2433.6,2432.8,1.02777]
[1728326916440,3.2078,2433.3,2433.2,0.41103]
[1728326916733,3.2078,2433.6,2433.5,0.41099]
[1728326917237,3.2078,2433.9,2433.5,10.1096]
[1728326917434,4.42,2434.5,2433.4,1.02749]
[1728326917435,3.2078,2433.6,2433.4,1.02749]
[1728326917734,3.2078,2433.6,2433.5,0.41099]
[1728326918038,3.2078,2433.6,2433.5,10.52059]
[1728326918537,3.2078,2433.6,2433.0,3.2078]
[1728326918841,3.2078,2433.7,2433.6,0.41096]
[1728326919341,0.41099,2433.5,2433.3,0.41102]
[1728326919642,3.2078,2433.4,2432.8,3.9178]
[1728326920137,3.2078,2433.4,2432.8,0.71]
[1728326920352,3.2078,2433.1,2432.9,0.41108]
[1728326920642,3.2078,2433.1,2432.4,0.41111659]
[1728326920934,3.2078,2432.7,2432.4,0.41111659]
[1728326921644,4.83116,2432.5,2432.4,0.41111659]
[1728326921835,0.41115,2432.6,2432.4,0.82228659]
[1728326922035,0.41116,2432.5,2432.4,0.41111659]
[1728326922535,3.2078,2432.7,2432.4,0.41111659]
[1728326922833,0.41115,2432.6,2432.4,0.41111659]
[1728326923040,3.2078,2432.7,2432.4,0.41111659]
[1728326923238,0.41116,2432.5,2432.4,0.41111659]
[1728326923636,3.2078,2432.7,2432.4,0.41111659]
[1728326923944,3.2078,2432.7,2432.6,0.41114]
[1728326924336,3.2078,2432.7,2432.6,4.52154]
[1728326924642,3.2078,2432.7,2432.6,10.52154]
[1728326926343,3.2078,2433.1,2432.6,10.1104]
[1728326926542,3.2078,2433.1,2433.0,0.41107]
[1728326927046,3.2078,2433.1,2433.0,4.52147]
[1728326927348,3.2078,2433.9,2433.8,0.41094]
[1728326927648,3.61873,2433.9,2433.7,0.41095]
[1728326927848,3.2078,2433.9,2433.8,0.41094]
[1728326928447,3.2078,2433.9,2433.2,3.874]
[1728326928649,3.2078,2433.9,2433.3,1.02756]
[1728326928949,3.2078,2433.9,2433.2,3.874]
[1728326929151,3.2078,2433.9,2433.8,0.41094]
[1728326929452,3.61873,2433.9,2433.7,0.41095]
[1728326929654,3.2078,2433.9,2433.2,4.90158]
[1728326929961,3.2078,2433.9,2433.2,1.69378]
[1728326930146,3.2078,2433.9,2433.3,1.02756]
[1728326930343,3.2078,2433.9,2433.2,1.69378]
[1728326930543,3.2078,2433.6,2432.8,1.02773]
[1728326930743,3.2078,2433.6,2432.8,0.41109]
[1728326930744,3.61888,2433.0,2432.8,0.41109]
[1728326930945,3.00204085,2433.0,2432.8,0.41109]
[1728326931148,3.41312085,2433.0,2432.5,1.3542]
[1728326931348,0.41109,2432.9,2432.8,0.41111]
[1728326931658,3.41312085,2433.0,2432.5,1.3542]
[1728326931843,3.00204085,2433.0,2432.9,0.41109]
[1728326932547,3.41313085,2433.0,2432.8,0.4111]
[1728326932752,3.00204085,2433.0,2432.9,0.41109]
[1728326932943,3.00204085,2433.0,2432.9,4.52149]
[1728326933149,0.41103,2433.3,2432.9,10.1104]
[1728326933150,3.2078,2433.3,2432.9,10.1104]
[1728326933350,3.2078,2433.3,2433.2,0.41104]
[1728326933742,3.2078,2433.3,2433.2,4.52064]
[1728326934051,3.2078,2433.3,2433.2,10.52064]
[1728326934554,6.12264,2434.3,2433.2,10.52064]
[1728326934555,3.2078,2433.6,2433.5,0.41099]
[1728326934751,3.2078,2433.6,2433.5,4.52059]
[1728326934948,5.0955,2434.3,2433.5,4.52059]
[1728326934949,3.2078,2433.9,2433.8,0.41094]
[1728326935455,3.2078,2433.9,2433.4,1.68418]
[1728326935651,3.2078,2433.9,2433.8,0.41094]
[1728326936653,3.2078,2433.9,2433.8,4.51974]
[1728326937067,3.2078,2434.2,2433.8,4.1088]
[1728326937361,3.2078,2434.2,2434.1,0.41087]
[1728326937558,0.41089,2434.1,2433.6,1.02743]
[1728326937748,3.2078,2434.2,2433.5,1.02747]
[1728326937749,0.41092,2433.9,2433.5,1.02747]
[1728326937955,3.2078,2433.9,2433.8,0.41094]
[1728326938249,3.2078,2433.9,2433.8,41.21094]
[1728326938448,3.2078,2434.4,2433.8,50.9088]
[1728326938662,3.2078,2434.4,2434.3,0.41085]
[1728326939152,3.2078,2434.4,2434.3,4.51885]
[1728326939456,5.0728,2435.1,2434.3,4.51885]
[1728326939457,3.2078,2435.0,2434.3,11.13513]
[1728326939655,3.2078,2435.0,2434.9,0.41075]
[1728326940358,7.315,2435.0,2434.2,0.6976]
[1728326940661,7.315,2435.0,2433.8,41.82734]
[1728326940662,3.2078,2434.4,2433.8,41.82734]
[1728326940863,3.2078,2434.4,2434.1,0.41088]
[1728326940864,0.41086,2434.3,2434.1,0.41088]
[1728326941156,3.2078,2434.4,2433.8,1.02734]
[1728326941349,3.2078,2434.7,2433.6,3.2078]
[1728326941549,5.54236951,2435.8,2433.6,1.02743]
[1728326941550,3.2078,2434.3,2433.6,1.02743]
[1728326941851,3.2078,2434.0,2433.9,0.41091]
[1728326942660,3.2078,2434.0,2433.9,0.41092]
[1728326942965,3.61871,2434.0,2433.8,0.41093]
[1728326943154,3.2078,2434.0,2433.9,0.41092]
[1728326944558,3.2078,2434.0,2433.8,0.41093]
[1728326944759,3.2078,2434.0,2433.9,0.41092]
[1728326946459,1.027,2434.7,2434.2,0.41086]
[1728326946460,3.2078,2434.3,2434.2,0.41086]
[1728326947254,3.2078,2434.3,2433.8,1.02732]
[1728326947456,3.2078,2434.3,2433.5,3.9054]
[1728326947457,3.2078,2433.9,2433.5,1.72506]
[1728326947653,3.2078,2433.9,2433.5,0.6976]
[1728326947860,0.41095,2433.8,2433.6,0.41097]
[1728326948066,0.41095,2433.8,2432.8,0.6752]
[1728326948067,4.1088,2433.7,2432.8,0.6752]
[1728326948360,3.2078,2433.0,2432.9,0.41109]
[1728326948561,0.41106,2433.1,2432.9,0.41108]
[1728326948751,3.2078,2433.0,2432.9,0.41108]
[1728326948952,3.2078,2433.0,2432.5,1.02787]
[1728326949354,3.2078,2432.7,2432.4,0.41111659]
[1728326949561,3.2078,2432.7,2431.7,0.6406]
[1728326949562,0.41125,2432.0,2431.7,0.6406]
[1728326949755,3.2078,2432.1,2431.3,3.2078]
[1728326950154,3.2078,2432.1,2431.1,43.13756]
[1728326950357,8.65587,2432.1,2431.1,42.1091]
[1728326950550,8.65587,2432.1,2431.6,0.4113]
[1728326950551,3.2078,2431.8,2431.6,0.4113]
[1728326950960,3.2078,2431.8,2431.1,42.1091]
[1728326951161,3.2078,2431.5,2431.4,0.41134]
[1728326951954,3.2078,2431.5,2431.1,1.3091]
[1728326952263,3.2078,2431.5,2431.4,0.41134]
[1728326952462,3.2078,2431.5,2431.1,1.3091]
[1728326952658,3.2078,2431.5,2431.4,0.41134]
[1728326952856,3.2078,2431.5,2431.3,0.41135]
[1728326953055,8.5328,2431.4,2430.4,1.02877]
[1728326953357,3.2078,2430.7,2430.4,0.4115]
[1728326953862,3.2078,2430.7,2430.0,0.2]
[1728326954063,3.2078,2430.4,2430.1,1.02891]
[1728326954269,3.2078,2431.1,2430.9,0.41143]
[1728326954562,3.2078,2431.1,2431.0,0.41141]
[1728326955164,3.2078,2431.1,2430.1,3.2078]
[1728326955369,3.2078,2431.1,2430.0,0.2]
[1728326955370,3.2078,2431.1,2431.0,0.41141]
[1728326955662,3.2078,2431.1,2430.4,3.2078]
[1728326955854,3.2078,2431.1,2430.9,0.41142]
[1728326956259,3.2078,2431.1,2431.0,0.41141]
[1728326957058,3.2078,2431.1,2431.0,4.52501]
[1728326957258,3.2078,2431.1,2431.0,45.32501]
[1728326957561,3.2078,2431.1,2431.0,40.8]
[1728326957764,0.41141,2431.0,2430.6,0.41146]
[1728326957954,4.42,2431.4,2430.0,3.4078]
[1728326957955,3.2078,2430.8,2430.0,3.4078]
[1728326958159,3.2078,2430.8,2430.1,40.8]
[1728326958366,3.2078,2430.8,2430.6,0.41147]
[1728326958570,3.2078,2430.8,2430.4,0.4115]
[1728326958768,3.2078,2430.5,2430.4,0.41151]
[1728326959164,3.2078,2430.5,2430.4,4.52591]
[1728326959471,3.2078,2430.5,2430.3,0.41152]
[1728326959659,3.2078,2430.5,2430.1,40.8]
[1728326959971,3.2078,2430.5,2430.4,0.41151]
[1728326960967,3.2078,2430.5,2430.0,0.2]
[1728326961158,0.41149,2430.6,2430.3,0.41152]
[1728326961353,0.41149,2430.6,2430.0,0.2]
[1728326961354,3.2078,2430.4,2430.0,0.2]
[1728326961556,3.2078,2430.4,2430.3,0.41153]
[1728326961764,3.2078,2430.4,2430.0,0.2]
[1728326962166,8.03936,2430.1,2430.0,0.2]
[1728326962465,8.03936,2430.1,2428.3,3.2078]
[1728326962466,10.2678,2430.1,2428.3,3.2078]
[1728326962763,3.2078,2428.8,2428.1,1.02972]
[1728326962966,3.2078,2428.8,2428.0,3.2078]
[1728326962967,3.2078,2428.8,2428.7,0.4118]
[1728326963268,3.2078,2428.8,2427.7,3.2078]
[1728326963469,3.2078,2428.5,2428.3,0.41187]
[1728326963661,3.2078,2428.5,2427.7,3.2078]
[1728326963662,3.2078,2428.5,2428.1,0.41189]
[1728326963855,3.2078,2428.2,2428.1,0.4119]
[1728326964368,0.6934,2429.1,2427.7,3.2078]
[1728326964369,3.2078,2428.5,2427.7,3.2078]
[1728326964567,3.2078,2428.5,2428.1,0.4119]
[1728326964762,3.2078,2428.5,2427.8,40.8]
[1728326965566,3.2078,2428.5,2428.4,0.41185]
[1728326965973,5.52514,2429.1,2427.9,1.02984]
[1728326965974,3.2078,2428.9,2427.9,1.02984]
[1728326966172,3.2078,2428.9,2428.4,0.41183]
[1728326966470,3.2078,2428.9,2428.0,1.02977]
[1728326966664,3.2078,2428.9,2428.8,0.41178]
[1728326967066,3.2078,2429.6,2428.9,1.02942]
[1728326967270,3.2078,2429.6,2429.5,0.41166]
[1728326967465,9.2078,2429.6,2428.2,1.0297]
[1728326967659,3.2078,2429.2,2428.5,1.02958]
[1728326968063,3.2078,2429.2,2429.1,0.41173]
[1728326969069,3.2078,2429.6,2429.1,4.1168]
[1728326969378,3.2078,2429.6,2429.5,0.41166]
[1728326970763,3.2078,2430.1,2429.5,10.52766]
[1728326970964,3.2078,2430.1,2429.2,1.02927]
[1728326970965,3.2078,2430.4,2429.7,1.02905]
[1728326971472,3.2078,2430.4,2429.8,40.8]
[1728326971669,3.2078,2430.4,2430.3,0.41153]
[1728326972277,3.2078,2430.9,2430.7,0.41144]
[1728326972483,3.2078,2430.9,2430.1,1.02891]
[1728326972668,5.44847,2431.2,2430.4,0.41151]
[1728326972669,3.2078,2430.5,2430.4,0.41151]
[1728326973177,4.42,2430.8,2429.9,0.6977]
[1728326973178,3.2078,2430.8,2429.9,0.6977]
[1728326973475,3.2078,2430.8,2430.7,0.41146]
[1728326974673,3.2078,2430.8,2430.7,4.52506]
[1728326975672,3.2078,2430.8,2430.6,0.41147]
[1728326975879,4.1144,2430.7,2430.4,0.4115]
[1728326976076,4.1144,2430.7,2429.9,0.6977]
[1728326976077,3.2078,2430.5,2429.9,0.6977]
[1728326976675,3.2078,2430.5,2429.7,0.6776]
[1728326976868,3.2078,2430.2,2429.1,3.8581]
[1728326977068,4.42,2430.3,2429.7,0.41162]
[1728326977069,3.2078,2429.8,2429.7,0.41162]
[1728326977663,3.2078,2430.1,2429.6,1.02913]
[1728326977875,3.2078,2430.1,2430.0,0.41158]
[1728326978278,3.2078,2430.4,2430.3,0.41153]
[1728326978777,2.638,2431.2,2430.3,4.52593]
[1728326978778,3.2078,2431.0,2430.3,4.52593]
[1728326978985,3.2078,2431.0,2430.9,0.41141]
[1728326979570,7.3214,2431.0,2430.8,0.41144]
[1728326979778,7.3214,2431.0,2430.4,1.02877]
[1728326979779,3.2078,2431.0,2430.4,1.02877]
[1728326980077,3.2078,2431.0,2430.9,0.41143]
[1728326980283,3.2078,2431.0,2430.8,0.41143]
[1728326980471,3.44834892,2430.8,2430.5,1.02874]
[1728326980773,3.44834892,2430.8,2430.7,0.41140412]
[1728326980978,6.65614892,2430.8,2430.7,0.41140412]
[1728326981278,6.65614892,2430.8,2429.3,2.0585]
[1728326981279,1.44025,2430.5,2429.7,0.41162]
[1728326981479,3.03672892,2429.7,2429.3,1.02923]
[1728326981681,3.03672892,2429.7,2429.6,0.41165]
[1728326982372,3.03672892,2429.7,2429.6,4.52765]
[1728326982579,3.2078,2430.0,2429.9,0.4116]
[1728326982774,5.83287892,2430.0,2429.9,0.4116]
[1728326983168,3.2078,2430.3,2429.9,0.4116]
[1728326983375,3.2078,2430.3,2430.2,0.41155]
[1728326983779,5.83287892,2430.3,2430.2,0.41155]
[1728326984778,3.2078,2430.6,2430.2,6.41155]
[1728326984982,3.2078,2430.9,2430.8,0.41143]
[1728326985377,5.83287892,2430.9,2430.8,0.41143]
[1728326986079,3.2078,2431.3,2430.5,1.02873]
[1728326986277,2.62507892,2431.0,2430.9,0.41143]
[1728326986772,3.2078,2431.3,2430.9,0.41143]
[1728326987084,5.83287892,2431.3,2431.2,0.41138]
[1728326988080,0.41138,2431.2,2430.6,1.02868]
[1728326988284,0.41138,2431.2,2430.2,0.41154]
[1728326988285,4.23648,2430.7,2430.2,0.41154]
[1728326988578,4.42,2430.9,2430.3,0.41152]
[1728326988579,3.2078,2430.4,2430.3,0.41152]
[1728326989177,7.3222,2430.4,2430.3,0.41152]
[1728326990084,7.3222,2430.4,2430.3,0.41153]
[1728326990583,7.73373,2430.4,2430.2,0.41154]
[1728326990885,7.73373,2430.4,2429.7,1.02906]
[1728326990886,3.61931,2430.4,2429.7,1.02906]
[1728326991178,3.61931,2430.4,2429.4,0.6778]
[1728326991179,0.41157,2430.1,2429.5,1.02915]
[1728326991482,3.2078,2429.8,2428.9,3.2078]
[1728326991688,0.41165,2429.7,2429.4,0.41167]
[1728326991983,3.2078,2429.5,2429.4,0.41167]
[1728326992176,3.2078,2429.5,2429.3,0.41169]
[1728326992478,3.2078,2429.5,2429.4,0.41168]
[1728326993076,3.2078,2430.5,2430.0,0.41158]
[1728326993286,3.2078,2430.5,2430.4,0.41151]
[1728326993578,1.75811,2431.1,2430.7,0.41146]
[1728326993579,3.2078,2430.8,2430.7,0.41146]
[1728326993781,4.1136,2431.0,2430.4,1.02879]
[1728326993981,3.6192,2431.1,2430.4,1.02879]
[1728326993982,3.2078,2431.1,2430.4,1.02877]
[1728326994282,0.41143,2430.9,2430.7,0.41146]
[1728326994478,3.2078,2430.8,2430.6,0.41147]
[1728326994882,4.1144,2430.7,2430.6,0.41147]
[1728326995184,8.5344,2430.7,2429.8,1.5897246]
[1728326995482,9.2078,2430.8,2429.8,0.4116]
[1728326995483,4.42,2430.1,2429.8,0.4116]
[1728326995877,3.2078,2430.2,2429.9,0.4116]
[1728326996181,3.2078,2430.2,2430.1,0.41156]
[1728326996579,3.2078,2430.5,2430.1,0.41156]
[1728326996776,3.61931,2430.5,2429.7,1.02906]
[1728326996978,3.61931,2430.5,2430.2,0.41154]
[1728326997179,3.2078,2430.5,2429.9,1.029]
[1728326997682,3.2078,2430.8,2430.1,3.2078]
[1728326997887,3.2078,2430.8,2430.7,0.41146]
[1728326998184,3.2078,2431.2,2430.4,3.2078]
[1728326998389,3.2078,2431.5,2430.7,1.02865]
[1728326998687,4.42,2431.0,2430.2,1.5897246]
[1728326998875,3.2078,2430.5,2430.4,0.41151]
[1728326999079,3.2078,2430.5,2429.7,1.02908]
[1728326999389,3.2078,2430.2,2430.1,0.41156]
[1728327000284,3.2078,2430.2,2430.1,4.52676]
[1728327000484,7.323,2430.2,2429.4,1.5897246]
[1728327000685,7.323,2430.2,2429.2,1.08891]
[1728327000686,3.2078,2429.5,2429.2,1.08891]
[1728327000984,3.2078,2429.5,2428.4,1.5897246]
[1728327000985,7.6278,2429.5,2428.4,1.5897246]
[1728327001186,3.2078,2428.8,2428.6,0.4118]
[1728327001486,3.2078,2428.8,2428.7,0.4118]
[1728327003683,3.2078,2429.5,2428.7,10.5294]
[1728327003890,3.61947,2429.5,2429.1,0.41172]
[1728327004083,3.2078,2429.2,2428.6,0.7211]
[1728327005088,3.61952,2429.2,2428.6,0.7211]
[1728327005281,0.41173,2429.1,2428.7,0.4118]
[1728327005483,0.41176,2429.0,2428.7,0.4118]
[1728327005686,3.2078,2428.8,2428.4,0.41184]
[1728327005889,3.2078,2428.5,2427.9,0.7211]
[1728327006090,3.2078,2428.2,2427.8,0.6967]
[1728327006396,3.2078,2428.2,2428.1,0.4119]
[1728327007588,3.2078,2428.2,2427.8,41.4967]
[1728327007589,3.2078,2428.2,2427.9,0.41192]
[1728327007791,3.6197,2428.2,2427.8,41.90865]
[1728327008099,3.2078,2427.9,2427.6,0.41198]
[1728327008392,3.2078,2427.9,2427.4,41.5211]
[1728327008794,3.2078,2427.9,2427.5,0.41199]
[1728327008993,3.61974,2427.9,2427.5,0.41199]
[1728327009189,3.61974,2427.9,2427.1,3.2078]
[1728327009190,3.2078,2427.9,2427.3,0.41202]
[1728327009491,3.2078,2427.9,2427.1,3.2078]
[1728327009686,3.2078,2427.9,2427.3,0.41203]
[1728327009687,7.6278,2427.9,2427.3,0.41203]
[1728327009887,0.41196,2427.8,2427.4,0.41202]
[1728327010088,0.41196,2427.8,2427.1,3.2078]
[1728327010089,7.6278,2427.9,2427.3,0.41203]
[1728327010289,7.6278,2427.9,2427.1,3.2078]
[1728327010485,0.41196,2427.8,2427.4,0.41201]
[1728327010688,7.6278,2427.9,2427.1,3.2078]
[1728327010892,3.2078,2427.6,2427.0,0.6995]
[1728327011088,3.2078,2427.6,2427.4,0.41201]
[1728327011289,3.2078,2427.6,2427.5,0.412]
[1728327011489,3.2078,2427.9,2427.2,1.03012]
[1728327011686,3.61974,2427.9,2427.6,0.41198]
[1728327011887,3.2078,2427.9,2427.1,3.2078]
[1728327012093,3.2078,2427.9,2427.8,0.41195]
[1728327012490,7.6278,2428.3,2427.8,4.1192]
[1728327012697,7.6278,2428.3,2428.2,0.41188]
[1728327012698,3.2078,2428.3,2428.2,0.41188]
[1728327013194,3.2078,2428.3,2428.1,0.41189]
[1728327013400,3.2078,2428.3,2428.0,0.41191]
[1728327013592,3.2078,2428.3,2427.5,0.706]
[1728327013593,0.41188,2428.2,2427.8,0.41194]
[1728327013793,0.41188,2428.2,2427.5,0.706]
[1728327013794,8.03968,2428.3,2427.9,0.41193]
[1728327014000,7.6278,2428.3,2427.5,0.706]
[1728327014191,0.41189,2428.2,2427.8,0.41195]
[1728327014614,7.6278,2428.3,2427.9,0.41193]
[1728327014900,12.15808,2428.3,2427.9,0.41193]
[1728327015088,12.15808,2428.3,2427.5,0.706]
[1728327015288,7.6278,2428.0,2427.2,1.03011]
[1728327015496,3.2078,2427.7,2427.6,0.41199]
[1728327015800,3.2078,2428.1,2428.0,0.41192]
[1728327015999,4.42,2428.7,2427.7,1.02992]
[1728327016000,3.2078,2428.4,2427.7,1.02992]
[1728327016199,7.6278,2428.4,2427.5,1.03]
[1728327016404,7.6278,2428.4,2427.8,1.02988]
[1728327016595,7.6278,2428.4,2428.3,0.41187]
[1728327016992,7.6278,2428.4,2427.8,1.02985]
[1728327017197,7.6278,2428.4,2428.1,0.41189]
[1728327017395,7.6278,2428.4,2427.4,2.44943]
[1728327017605,3.2078,2427.7,2427.2,3.2078]
[1728327017897,3.2078,2427.7,2427.6,0.41199]
[1728327018700,4.42,2427.9,2427.3,1.0301]
[1728327019005,3.2078,2428.0,2427.9,0.41194]
[1728327019492,7.3262,2428.0,2427.9,0.41194]
[1728327019695,7.3262,2428.0,2427.5,1.02998]
[1728327019696,7.3262,2428.0,2427.3,0.676]
[1728327019901,3.2078,2428.0,2427.9,0.41194]
[1728327020290,3.2078,2428.0,2427.8,0.41194]
[1728327020291,13.3262,2428.0,2427.8,0.41194]
[1728327020496,0.41194,2427.9,2427.7,0.41197]
[1728327020701,0.41202,2427.5,2427.2,0.41205]
[1728327020903,0.41206,2427.2,2427.0,0.41208]
[1728327021094,7.3278,2427.1,2426.6,20.83761]
[1728327021296,3.2078,2427.1,2426.6,19.80724]
[1728327021504,3.2078,2427.5,2426.7,1.03036]
[1728327021795,0.7329,2427.6,2427.1,0.41206]
[1728327021796,3.2078,2427.2,2427.1,0.41206]
[1728327022597,4.122,2428.9,2427.1,0.41206]
[1728327022598,8.3328,2428.1,2427.3,1.03006]
[1728327022904,8.3328,2428.1,2427.6,0.41199]
[1728327022905,4.42,2427.7,2427.6,0.41199]
[1728327023102,0.705,2428.1,2428.0,0.41192]
[1728327023103,8.3328,2428.1,2428.0,0.41192]
[1728327023299,8.3328,2428.1,2427.6,1.02997]
[1728327023601,3.2078,2428.1,2428.0,0.41192]
[1728327024307,3.2078,2428.1,2428.0,4.53032]
[1728327024492,3.2078,2428.1,2427.8,40.8]
[1728327024696,7.6278,2428.1,2427.8,40.8]
[1728327024900,7.6278,2428.1,2427.7,0.41197]
[1728327025100,3.2078,2428.1,2427.8,0.41194]
[1728327025298,0.41193,2428.0,2427.7,0.41197]
[1728327025596,3.2078,2428.1,2427.3,40.8]
[1728327025996,3.61971,2428.1,2427.8,0.41195]
[1728327026196,3.2078,2428.1,2428.0,0.41192]
[1728327027401,0.6781,2428.6,2428.5,0.41183]
[1728327027402,3.2078,2428.6,2428.5,0.41183]
[1728327027796,8.71932,2429.2,2429.0,0.41175]
[1728327028007,8.71932,2429.2,2428.5,0.41183]
[1728327028008,4.1168,2429.1,2428.9,0.41176]
[1728327028302,4.1168,2429.1,2428.4,3.2078]
[1728327028303,3.2078,2429.0,2428.4,3.2078]
[1728327028503,4.42,2428.6,2428.5,0.41183]
[1728327028901,4.42,2428.6,2428.4,0.41185]
[1728327028902,4.83182,2428.6,2428.4,0.41185]
[1728327029103,4.83182,2428.6,2428.2,0.7394]
[1728327029104,3.2078,2428.7,2428.6,0.41182]
[1728327029302,0.41172,2429.2,2428.5,1.02955]
[1728327029510,0.41176,2429.0,2428.8,0.41178]
[1728327029694,13.6278,2429.0,2428.5,0.41183]
[1728327029898,7.6278,2429.0,2428.2,0.7394]
[1728327030099,3.2078,2428.7,2428.2,0.7394]
[1728327030293,3.2078,2428.7,2428.6,0.41182]
[1728327030607,3.2078,2428.7,2428.2,0.7394]
[1728327031316,3.2078,2428.7,2428.5,0.41183]
[1728327031609,3.61961,2428.7,2428.4,0.41183]
[1728327031803,3.2078,2428.7,2428.2,0.7394]
[1728327032003,3.2078,2428.7,2428.6,0.41182]
[1728327032507,7.7372,2428.7,2428.5,0.41183]
[1728327032705,3.2078,2428.7,2428.3,0.41187]
[1728327032896,3.2078,2428.7,2428.6,0.41182]
[1728327033103,3.2078,2428.7,2428.2,0.7394]
[1728327033104,3.2078,2429.1,2428.2,0.7394]
[1728327033299,3.2078,2429.1,2429.0,0.41175]
[1728327033508,3.2078,2429.1,2428.4,4.23743]
[1728327033509,0.41175,2429.0,2428.8,0.41177]
[1728327033808,0.41175,2429.0,2428.7,0.41179]
[1728327034011,8.03954,2429.1,2428.5,1.02959]
[1728327034316,7.6278,2429.1,2428.4,41.82963]
[1728327034610,0.41176,2429.0,2428.4,41.82963]
[1728327034808,0.41175,2429.0,2428.3,1.02968]
[1728327035007,7.6278,2429.1,2428.4,1.02963]
[1728327035309,3.2078,2429.1,2429.0,0.41175]
[1728327036006,3.2078,2429.1,2428.6,0.7738]
[1728327036007,3.61954,2429.1,2428.6,0.7738]
[1728327036206,0.41176,2429.0,2428.7,0.4118]